[Event "Titled Tuesday Blitz December 20 Early 2022"]
[White "TheoSlade"]
[Black "Benamar, Benious"]
[BlackFideId "45118841"]
[WhiteElo "2571"]
[BlackElo "1136"]
[Result "1-0"]
[Round "05"]
[TimeControl "180+2"]
[Date "2022.12.20"]
[WhiteClock "0:00:25"]
[BlackClock "0:00:02"]

1. d4 {[%clk 0:03:00]}  d6 {[%clk 0:02:59]} 2. Nf3 {[%clk 0:03:00]}  Bg4 {[%clk 0:02:59]} 3. e4 {[%clk 0:03:00]}  Nf6 {[%clk 0:02:59]} 4. Nc3 {[%clk 0:02:59]}  e6 {[%clk 0:02:59]} 5. h3 {[%clk 0:02:58]}  Bh5 {[%clk 0:02:59]} 6. Qe2 {[%clk 0:02:59]}  c6 {[%clk 0:02:58]} 7. g4 {[%clk 0:02:58]}  Bg6 {[%clk 0:02:58]} 8. h4 {[%clk 0:02:58]}  h5 {[%clk 0:02:50]} 9. g5 {[%clk 0:02:58]}  Nfd7 {[%clk 0:02:50]} 10. Be3 {[%clk 0:02:56]}  d5 {[%clk 0:02:44]} 11. Nd2 {[%clk 0:02:49]}  Be7 {[%clk 0:02:37]} 12. O-O-O {[%clk 0:02:45]}  b5 {[%clk 0:02:33]} 13. Bg2 {[%clk 0:02:31]}  b4 {[%clk 0:02:24]} 14. Ncb1 {[%clk 0:02:31]}  Qa5 {[%clk 0:02:03]} 15. f4 {[%clk 0:01:58]}  dxe4 {[%clk 0:01:58]} 16. Bxe4 {[%clk 0:01:56]}  Bxe4 {[%clk 0:01:53]} 17. Nxe4 {[%clk 0:01:57]}  Qxa2 {[%clk 0:01:51]} 18. g6 {[%clk 0:01:48]}  fxg6 {[%clk 0:01:49]} 19. Qg2 {[%clk 0:01:46]}  Nf8 {[%clk 0:01:37]} 20. Nc5 {[%clk 0:01:45]}  Qd5 {[%clk 0:01:26]} 21. Qg3 {[%clk 0:01:40]}  Nbd7 {[%clk 0:01:24]} 22. Nxd7 {[%clk 0:01:33]}  Kxd7 {[%clk 0:01:20]} 23. Nd2 {[%clk 0:01:29]}  a5 {[%clk 0:00:52]} 24. Nf3 {[%clk 0:01:24]}  a4 {[%clk 0:00:52]} 25. Ne5+ {[%clk 0:01:25]}  Kc8 {[%clk 0:00:52]} 26. Qf3 {[%clk 0:01:18]}  Qxf3 {[%clk 0:00:43]} 27. Nxf3 {[%clk 0:01:19]}  a3 {[%clk 0:00:35]} 28. b3 {[%clk 0:01:16]}  Kb7 {[%clk 0:00:28]} 29. Ne5 {[%clk 0:01:16]}  Kc7 {[%clk 0:00:11]} 30. Rdg1 {[%clk 0:01:16]}  Bf6 {[%clk 0:00:08]} 31. Nxg6 {[%clk 0:01:16]}  Nxg6 {[%clk 0:00:09]} 32. Rxg6 {[%clk 0:01:16]}  Rad8 {[%clk 0:00:08]} 33. Rf1 {[%clk 0:00:37]}  a2 {[%clk 0:00:08]} 34. Kb2 {[%clk 0:00:36]}  Rxd4 {[%clk 0:00:08]} 35. Rxf6 {[%clk 0:00:30]}  Re4 {[%clk 0:00:02]} 36. Rf7+ {[%clk 0:00:29]}  Kb8 {[%clk 0:00:02]} 37. Bb6 {[%clk 0:00:25]} 1-0


[Site "https://www.chess.com"]

[Event "Titled Tuesday Blitz December 20 Early 2022"]
[White "Tsyhanchuk_Stanislav"]
[Black "guillembaches"]
[WhiteElo "2335"]
[BlackElo "2464"]
[Result "0-1"]
[Round "05"]
[TimeControl "180+2"]
[Date "2022.12.20"]
[WhiteClock "0:00:50"]
[BlackClock "0:01:49"]

1. e4 {[%clk 0:02:58]}  c5 {[%clk 0:02:59]} 2. Nf3 {[%clk 0:02:58]}  d6 {[%clk 0:03:00]} 3. d4 {[%clk 0:02:58]}  cxd4 {[%clk 0:03:01]} 4. Nxd4 {[%clk 0:02:58]}  Nf6 {[%clk 0:03:01]} 5. Nc3 {[%clk 0:02:59]}  Nc6 {[%clk 0:03:02]} 6. Be3 {[%clk 0:02:59]}  Ng4 {[%clk 0:03:01]} 7. Bg5 {[%clk 0:02:50]}  Qb6 {[%clk 0:02:59]} 8. Bb5 {[%clk 0:02:25]}  Bd7 {[%clk 0:02:57]} 9. Bxc6 {[%clk 0:02:12]}  bxc6 {[%clk 0:02:58]} 10. O-O {[%clk 0:02:07]}  Qxb2 {[%clk 0:02:41]} 11. Qd2 {[%clk 0:01:52]}  Qb6 {[%clk 0:02:27]} 12. Rab1 {[%clk 0:01:49]}  Qc5 {[%clk 0:02:24]} 13. Na4 {[%clk 0:01:25]}  Qc4 {[%clk 0:02:14]} 14. Rb4 {[%clk 0:01:05]}  Qa6 {[%clk 0:02:09]} 15. Rfb1 {[%clk 0:00:50]}  Rc8 {[%clk 0:01:49]} 0-1


[Site "https://www.chess.com"]

[Event "Titled Tuesday Blitz December 20 Early 2022"]
[White "Ural_bogatyr"]
[Black "Dela Cruz, Noel"]
[BlackFideId "5207649"]
[WhiteElo "2615"]
[BlackElo "2241"]
[Result "0-1"]
[Round "05"]
[TimeControl "180+2"]
[Date "2022.12.20"]
[WhiteClock "0:00:52"]
[BlackClock "0:01:25"]

1. d4 {[%clk 0:03:00]}  f5 {[%clk 0:02:58]} 2. h3 {[%clk 0:03:00]}  Nf6 {[%clk 0:02:47]} 3. g4 {[%clk 0:02:59]}  d5 {[%clk 0:02:48]} 4. Bg2 {[%clk 0:02:50]}  fxg4 {[%clk 0:02:45]} 5. hxg4 {[%clk 0:02:49]}  Bxg4 {[%clk 0:02:46]} 6. Qd3 {[%clk 0:02:46]}  e6 {[%clk 0:02:40]} 7. Qb5+ {[%clk 0:02:34]}  Nc6 {[%clk 0:02:38]} 8. c3 {[%clk 0:02:28]}  a6 {[%clk 0:02:35]} 9. Qd3 {[%clk 0:02:25]}  Be7 {[%clk 0:02:29]} 10. Bg5 {[%clk 0:02:21]}  Qd7 {[%clk 0:02:25]} 11. f3 {[%clk 0:02:19]}  Bf5 {[%clk 0:02:25]} 12. e4 {[%clk 0:02:20]}  Bg6 {[%clk 0:02:25]} 13. Nd2 {[%clk 0:02:16]}  O-O-O {[%clk 0:02:08]} 14. Qe3 {[%clk 0:02:06]}  Rhf8 {[%clk 0:02:00]} 15. Bh3 {[%clk 0:02:00]}  Kb8 {[%clk 0:01:55]} 16. O-O-O {[%clk 0:01:51]}  h6 {[%clk 0:01:41]} 17. Bh4 {[%clk 0:01:38]}  Nh5 {[%clk 0:01:38]} 18. Bxe7 {[%clk 0:01:34]}  Qxe7 {[%clk 0:01:37]} 19. Ne2 {[%clk 0:01:33]}  e5 {[%clk 0:01:34]} 20. Rhg1 {[%clk 0:01:04]}  exd4 {[%clk 0:01:32]} 21. Nxd4 {[%clk 0:01:01]}  Nxd4 {[%clk 0:01:30]} 22. Qxd4 {[%clk 0:01:00]}  Nf4 {[%clk 0:01:29]} 23. Bf1 {[%clk 0:00:52]}  dxe4 {[%clk 0:01:27]} 24. Qa4 {[%clk 0:00:52]}  e3 {[%clk 0:01:25]} 0-1


[Site "https://www.chess.com"]

[Event "Titled Tuesday Blitz December 20 Early 2022"]
[White "Volkov, Nikolay Nik."]
[Black "annacramling"]
[WhiteFideId "4176626"]
[WhiteElo "2123"]
[BlackElo "2219"]
[Result "1-0"]
[Round "05"]
[TimeControl "180+2"]
[Date "2022.12.20"]
[WhiteClock "0:00:54"]
[BlackClock "0:00:02"]

1. Nf3 {[%clk 0:02:57]}  d5 {[%clk 0:02:58]} 2. g3 {[%clk 0:02:55]}  c5 {[%clk 0:02:47]} 3. Bg2 {[%clk 0:02:53]}  Nc6 {[%clk 0:02:36]} 4. d4 {[%clk 0:02:51]}  cxd4 {[%clk 0:02:35]} 5. Nxd4 {[%clk 0:02:51]}  e5 {[%clk 0:02:35]} 6. Nxc6 {[%clk 0:02:50]}  bxc6 {[%clk 0:02:36]} 7. O-O {[%clk 0:02:49]}  Nf6 {[%clk 0:02:36]} 8. c4 {[%clk 0:02:48]}  Be7 {[%clk 0:02:34]} 9. Qa4 {[%clk 0:02:43]}  O-O {[%clk 0:02:32]} 10. Qxc6 {[%clk 0:02:33]}  Bd7 {[%clk 0:02:08]} 11. Qa6 {[%clk 0:02:05]}  Be6 {[%clk 0:01:47]} 12. Rd1 {[%clk 0:01:59]}  Qc7 {[%clk 0:01:40]} 13. cxd5 {[%clk 0:01:52]}  Bxd5 {[%clk 0:01:36]} 14. Nc3 {[%clk 0:01:42]}  Bc4 {[%clk 0:01:27]} 15. Qa4 {[%clk 0:01:36]}  Rad8 {[%clk 0:01:21]} 16. Be3 {[%clk 0:01:32]}  Ng4 {[%clk 0:00:53]} 17. Qxa7 {[%clk 0:01:19]}  Qxa7 {[%clk 0:00:51]} 18. Bxa7 {[%clk 0:01:19]}  Ra8 {[%clk 0:00:52]} 19. Bxa8 {[%clk 0:01:13]}  Rxa8 {[%clk 0:00:51]} 20. Rd7 {[%clk 0:01:08]}  Kf8 {[%clk 0:00:36]} 21. Rb7 {[%clk 0:00:57]}  Bd6 {[%clk 0:00:06]} 22. Ne4 {[%clk 0:00:57]}  Nxf2 {[%clk 0:00:02]} 23. Kxf2 {[%clk 0:00:54]} 1-0


[Site "https://www.chess.com"]

[Event "Titled Tuesday Blitz December 20 Early 2022"]
[White "Vsevolod_Ovchinnikov"]
[Black "Aishath, Aika"]
[BlackFideId "16702026"]
[WhiteElo "2557"]
[BlackElo "2770"]
[Result "0-1"]
[Round "05"]
[TimeControl "180+2"]
[Date "2022.12.20"]
[WhiteClock "0:00:06"]
[BlackClock "0:00:05"]

1. d4 {[%clk 0:02:36]}  d5 {[%clk 0:02:58]} 2. c4 {[%clk 0:02:37]}  c6 {[%clk 0:02:58]} 3. Nf3 {[%clk 0:02:37]}  Nf6 {[%clk 0:02:58]} 4. g3 {[%clk 0:02:38]}  dxc4 {[%clk 0:02:57]} 5. Bg2 {[%clk 0:02:38]}  e6 {[%clk 0:02:54]} 6. a4 {[%clk 0:02:38]}  Bb4+ {[%clk 0:02:47]} 7. Bd2 {[%clk 0:02:36]}  a5 {[%clk 0:02:42]} 8. O-O {[%clk 0:02:30]}  O-O {[%clk 0:02:39]} 9. Qc2 {[%clk 0:02:15]}  Bxd2 {[%clk 0:02:34]} 10. Nbxd2 {[%clk 0:02:15]}  b5 {[%clk 0:02:34]} 11. e3 {[%clk 0:02:15]}  Nd5 {[%clk 0:02:31]} 12. Ne5 {[%clk 0:02:11]}  f6 {[%clk 0:02:26]} 13. Nef3 {[%clk 0:02:11]}  Na6 {[%clk 0:02:24]} 14. Ne4 {[%clk 0:02:00]}  Nab4 {[%clk 0:02:22]} 15. Qb1 {[%clk 0:01:59]}  Nd3 {[%clk 0:02:17]} 16. Ne1 {[%clk 0:01:58]}  Nxe1 {[%clk 0:02:06]} 17. Rxe1 {[%clk 0:01:59]}  e5 {[%clk 0:02:03]} 18. dxe5 {[%clk 0:01:49]}  fxe5 {[%clk 0:02:04]} 19. axb5 {[%clk 0:01:49]}  cxb5 {[%clk 0:02:03]} 20. Rd1 {[%clk 0:01:50]}  Kh8 {[%clk 0:01:57]} 21. Nc3 {[%clk 0:01:21]}  Bf5 {[%clk 0:01:49]} 22. Qc1 {[%clk 0:00:39]}  Nxc3 {[%clk 0:01:46]} 23. Qxc3 {[%clk 0:00:34]}  Qc7 {[%clk 0:01:34]} 24. Bxa8 {[%clk 0:00:30]}  Rxa8 {[%clk 0:01:35]} 25. Rd5 {[%clk 0:00:28]}  Bh3 {[%clk 0:01:22]} 26. Qxe5 {[%clk 0:00:26]}  Qf7 {[%clk 0:01:02]} 27. Qe4 {[%clk 0:00:06]}  Rf8 {[%clk 0:01:00]} 28. f4 {[%clk 0:00:05]}  Re8 {[%clk 0:00:54]} 29. Qd4 {[%clk 0:00:05]}  h6 {[%clk 0:00:34]} 30. e4 {[%clk 0:00:05]}  Qb7 {[%clk 0:00:26]} 31. Re1 {[%clk 0:00:05]}  a4 {[%clk 0:00:23]} 32. Rd6 {[%clk 0:00:05]}  Kh7 {[%clk 0:00:22]} 33. Qb6 {[%clk 0:00:05]}  Qxb6+ {[%clk 0:00:13]} 34. Rxb6 {[%clk 0:00:06]}  Bd7 {[%clk 0:00:13]} 35. Kf2 {[%clk 0:00:06]}  Re7 {[%clk 0:00:12]} 36. Ke3 {[%clk 0:00:06]}  Be8 {[%clk 0:00:12]} 37. e5 {[%clk 0:00:06]}  Rd7 {[%clk 0:00:11]} 38. Re2 {[%clk 0:00:06]}  Rd3+ {[%clk 0:00:11]} 39. Kf2 {[%clk 0:00:07]}  a3 {[%clk 0:00:10]} 40. bxa3 {[%clk 0:00:07]}  Rxa3 {[%clk 0:00:11]} 41. f5 {[%clk 0:00:08]}  Rd3 {[%clk 0:00:08]} 42. g4 {[%clk 0:00:07]}  c3 {[%clk 0:00:08]} 43. Rb7 {[%clk 0:00:07]}  Bc6 {[%clk 0:00:07]} 44. Rc7 {[%clk 0:00:07]}  Rf3+ {[%clk 0:00:05]} 45. Ke1 {[%clk 0:00:07]}  Be8 {[%clk 0:00:03]} 46. Rf2 {[%clk 0:00:06]}  Re3+ {[%clk 0:00:03]} 47. Re2 {[%clk 0:00:06]}  Rf3 {[%clk 0:00:03]} 48. f6 {[%clk 0:00:07]}  b4 {[%clk 0:00:03]} 49. Rxg7+ {[%clk 0:00:07]}  Kh8 {[%clk 0:00:04]} 50. Rc7 {[%clk 0:00:07]}  b3 {[%clk 0:00:04]} 51. Rc8 {[%clk 0:00:07]}  b2 {[%clk 0:00:04]} 52. Rxe8+ {[%clk 0:00:08]}  Kh7 {[%clk 0:00:05]} 53. Rb8 {[%clk 0:00:08]}  Re3 {[%clk 0:00:04]} 54. Kf2 {[%clk 0:00:07]}  Rxe2+ {[%clk 0:00:04]} 55. Kxe2 {[%clk 0:00:08]}  c2 {[%clk 0:00:05]} 56. f7 {[%clk 0:00:08]}  c1=Q {[%clk 0:00:05]} 57. f8=Q {[%clk 0:00:09]}  Qc2+ {[%clk 0:00:05]} 58. Ke3 {[%clk 0:00:10]}  Qc3+ {[%clk 0:00:06]} 59. Ke4 {[%clk 0:00:10]}  Qc4+ {[%clk 0:00:06]} 60. Kf5 {[%clk 0:00:10]}  Qf1+ {[%clk 0:00:06]} 61. Ke6 {[%clk 0:00:09]}  Qxf8 {[%clk 0:00:07]} 62. Rxf8 {[%clk 0:00:10]}  b1=Q {[%clk 0:00:08]} 63. Rf7+ {[%clk 0:00:10]}  Kg6 {[%clk 0:00:08]} 64. Rf6+ {[%clk 0:00:11]}  Kg5 {[%clk 0:00:09]} 65. h3 {[%clk 0:00:11]}  Qb3+ {[%clk 0:00:08]} 66. Ke7 {[%clk 0:00:11]}  Qxh3 {[%clk 0:00:08]} 67. Kf7 {[%clk 0:00:09]}  Kxg4 {[%clk 0:00:07]} 68. e6 {[%clk 0:00:08]}  Qb3 {[%clk 0:00:06]} 69. Rxh6 {[%clk 0:00:08]}  Kf5 {[%clk 0:00:06]} 70. Rf6+ {[%clk 0:00:09]}  Kg5 {[%clk 0:00:07]} 71. Rg6+ {[%clk 0:00:09]}  Kf5 {[%clk 0:00:07]} 72. Rf6+ {[%clk 0:00:09]}  Ke5 {[%clk 0:00:07]} 73. Rg6 {[%clk 0:00:08]}  Kd6 {[%clk 0:00:07]} 74. Kf8 {[%clk 0:00:08]}  Qb8+ {[%clk 0:00:07]} 75. Kf7 {[%clk 0:00:08]}  Qb3 {[%clk 0:00:06]} 76. Rf6 {[%clk 0:00:08]}  Qc4 {[%clk 0:00:05]} 77. Kf8 {[%clk 0:00:08]}  Ke5 {[%clk 0:00:05]} 78. e7 {[%clk 0:00:07]}  Kxf6 {[%clk 0:00:04]} 79. e8=Q {[%clk 0:00:08]}  Qb4+ {[%clk 0:00:05]} 80. Kg8 {[%clk 0:00:08]}  Qg4+ {[%clk 0:00:05]} 81. Kh7 {[%clk 0:00:06]}  Qg7# {[%clk 0:00:05]} 0-1


[Site "https://www.chess.com"]

[Event "Titled Tuesday Blitz December 20 Early 2022"]
[White "WizardSA"]
[Black "Haimov, Elchanan"]
[BlackFideId "2835916"]
[WhiteElo "2098"]
[BlackElo "1707"]
[Result "0-1"]
[Round "05"]
[TimeControl "180+2"]
[Date "2022.12.20"]
[WhiteClock "0:00:01"]
[BlackClock "0:01:17"]

1. e4 {[%clk 0:02:59]}  c6 {[%clk 0:02:36]} 2. d4 {[%clk 0:02:59]}  d5 {[%clk 0:02:37]} 3. exd5 {[%clk 0:03:00]}  cxd5 {[%clk 0:02:37]} 4. Bd3 {[%clk 0:03:00]}  Nc6 {[%clk 0:02:37]} 5. c3 {[%clk 0:03:01]}  Qc7 {[%clk 0:02:38]} 6. Nf3 {[%clk 0:02:55]}  Bg4 {[%clk 0:02:38]} 7. h3 {[%clk 0:02:54]}  Bh5 {[%clk 0:02:38]} 8. Bg5 {[%clk 0:02:49]}  e6 {[%clk 0:02:38]} 9. Nbd2 {[%clk 0:02:45]}  Bd6 {[%clk 0:02:38]} 10. Qb3 {[%clk 0:02:44]}  Nge7 {[%clk 0:02:37]} 11. O-O {[%clk 0:02:41]}  a6 {[%clk 0:02:35]} 12. a4 {[%clk 0:02:41]}  O-O {[%clk 0:02:32]} 13. Rfe1 {[%clk 0:02:35]}  f6 {[%clk 0:02:11]} 14. Bh4 {[%clk 0:01:54]}  Bf7 {[%clk 0:02:11]} 15. Qc2 {[%clk 0:01:50]}  Ng6 {[%clk 0:02:07]} 16. Nf1 {[%clk 0:01:40]}  e5 {[%clk 0:02:00]} 17. dxe5 {[%clk 0:01:32]}  fxe5 {[%clk 0:02:01]} 18. Ng5 {[%clk 0:01:29]}  Nxh4 {[%clk 0:01:52]} 19. Bxh7+ {[%clk 0:01:20]}  Kh8 {[%clk 0:01:52]} 20. g3 {[%clk 0:01:13]}  Be7 {[%clk 0:01:34]} 21. gxh4 {[%clk 0:01:12]}  Bxg5 {[%clk 0:01:33]} 22. hxg5 {[%clk 0:01:11]}  e4 {[%clk 0:01:33]} 23. Bxe4 {[%clk 0:00:58]}  dxe4 {[%clk 0:01:32]} 24. Rxe4 {[%clk 0:00:58]}  Bh5 {[%clk 0:01:26]} 25. Rh4 {[%clk 0:00:54]}  Qf7 {[%clk 0:01:24]} 26. Ng3 {[%clk 0:00:50]}  g6 {[%clk 0:01:23]} 27. Nxh5 {[%clk 0:00:39]}  gxh5 {[%clk 0:01:23]} 28. Re1 {[%clk 0:00:33]}  Rae8 {[%clk 0:01:22]} 29. Rxe8 {[%clk 0:00:31]}  Rxe8 {[%clk 0:01:23]} 30. g6 {[%clk 0:00:27]}  Re1+ {[%clk 0:01:22]} 31. Kh2 {[%clk 0:00:25]}  Qd5 {[%clk 0:01:19]} 32. g7+ {[%clk 0:00:06]}  Kg8 {[%clk 0:01:18]} 33. f3 {[%clk 0:00:05]}  Qe5+ {[%clk 0:01:17]} 34. f4 {[%clk 0:00:01]}  Re2+ {[%clk 0:01:17]} 35. Kg3 {[%clk 0:00:01]}  Qe3# {[%clk 0:01:17]} 0-1


[Site "https://www.chess.com"]

[Event "Titled Tuesday Blitz December 20 Early 2022"]
[White "Yildiz, Ayse Emek"]
[Black "szachuspl"]
[WhiteFideId "6303528"]
[WhiteElo "1702"]
[BlackElo "2642"]
[Result "1-0"]
[Round "05"]
[TimeControl "180+2"]
[Date "2022.12.20"]
[WhiteClock "0:00:06"]
[BlackClock "0:00:08"]

1. e4 {[%clk 0:03:00]}  g6 {[%clk 0:02:56]} 2. d4 {[%clk 0:03:00]}  Bg7 {[%clk 0:02:56]} 3. Nc3 {[%clk 0:03:00]}  d6 {[%clk 0:02:57]} 4. f4 {[%clk 0:03:00]}  a6 {[%clk 0:02:53]} 5. Nf3 {[%clk 0:02:59]}  b5 {[%clk 0:02:53]} 6. Bd3 {[%clk 0:03:00]}  Nd7 {[%clk 0:02:45]} 7. a4 {[%clk 0:02:59]}  b4 {[%clk 0:02:44]} 8. Ne2 {[%clk 0:02:59]}  c5 {[%clk 0:02:39]} 9. c3 {[%clk 0:02:59]}  Ngf6 {[%clk 0:02:30]} 10. O-O {[%clk 0:02:58]}  O-O {[%clk 0:02:30]} 11. Ng3 {[%clk 0:02:57]}  a5 {[%clk 0:02:28]} 12. Qe2 {[%clk 0:02:50]}  Bb7 {[%clk 0:02:18]} 13. Bd2 {[%clk 0:02:46]}  cxd4 {[%clk 0:02:15]} 14. cxd4 {[%clk 0:02:45]}  Nb6 {[%clk 0:02:11]} 15. b3 {[%clk 0:02:39]}  Rc8 {[%clk 0:02:10]} 16. f5 {[%clk 0:02:35]}  Qc7 {[%clk 0:01:57]} 17. h4 {[%clk 0:02:29]}  e5 {[%clk 0:01:32]} 18. d5 {[%clk 0:02:16]}  Nbd7 {[%clk 0:01:29]} 19. fxg6 {[%clk 0:01:58]}  hxg6 {[%clk 0:01:26]} 20. Ng5 {[%clk 0:01:58]}  Nc5 {[%clk 0:01:23]} 21. Bc4 {[%clk 0:01:58]}  Qd7 {[%clk 0:01:20]} 22. h5 {[%clk 0:01:45]}  Qg4 {[%clk 0:01:12]} 23. h6 {[%clk 0:01:14]}  Qxe2 {[%clk 0:00:46]} 24. Bxe2 {[%clk 0:00:55]}  Bh8 {[%clk 0:00:46]} 25. Rf3 {[%clk 0:00:54]}  Nh7 {[%clk 0:00:46]} 26. Raf1 {[%clk 0:00:50]}  f6 {[%clk 0:00:34]} 27. Nh3 {[%clk 0:00:41]}  Rf7 {[%clk 0:00:25]} 28. Bc4 {[%clk 0:00:41]}  Nxa4 {[%clk 0:00:22]} 29. Ra1 {[%clk 0:00:33]}  Nb2 {[%clk 0:00:22]} 30. Bf1 {[%clk 0:00:23]}  Rc2 {[%clk 0:00:22]} 31. Be1 {[%clk 0:00:23]}  Rf8 {[%clk 0:00:14]} 32. Rxa5 {[%clk 0:00:22]}  Ra8 {[%clk 0:00:13]} 33. Rxa8+ {[%clk 0:00:19]}  Bxa8 {[%clk 0:00:14]} 34. Rf2 {[%clk 0:00:19]}  Rxf2 {[%clk 0:00:13]} 35. Nxf2 {[%clk 0:00:18]}  Bb7 {[%clk 0:00:10]} 36. Bd2 {[%clk 0:00:18]}  Bc8 {[%clk 0:00:09]} 37. Bc1 {[%clk 0:00:18]}  f5 {[%clk 0:00:07]} 38. Bxb2 {[%clk 0:00:18]}  f4 {[%clk 0:00:06]} 39. Ne2 {[%clk 0:00:18]}  g5 {[%clk 0:00:06]} 40. Nc1 {[%clk 0:00:18]}  Nf6 {[%clk 0:00:05]} 41. Ncd3 {[%clk 0:00:13]}  g4 {[%clk 0:00:06]} 42. Nxb4 {[%clk 0:00:12]}  g3 {[%clk 0:00:07]} 43. Nfd3 {[%clk 0:00:12]}  Nxe4 {[%clk 0:00:07]} 44. Nc6 {[%clk 0:00:12]}  Bg4 {[%clk 0:00:06]} 45. b4 {[%clk 0:00:10]}  Bf6 {[%clk 0:00:07]} 46. b5 {[%clk 0:00:10]}  Bc8 {[%clk 0:00:07]} 47. Be2 {[%clk 0:00:09]}  Bb7 {[%clk 0:00:06]} 48. Bf3 {[%clk 0:00:09]}  Nd2 {[%clk 0:00:06]} 49. Bc3 {[%clk 0:00:08]}  Nc4 {[%clk 0:00:06]} 50. Bg4 {[%clk 0:00:07]}  Kh7 {[%clk 0:00:05]} 51. Bf5+ {[%clk 0:00:07]}  Kxh6 {[%clk 0:00:06]} 52. Be6 {[%clk 0:00:05]}  Kg5 {[%clk 0:00:06]} 53. Kf1 {[%clk 0:00:05]}  e4 {[%clk 0:00:06]} 54. Bxf6+ {[%clk 0:00:05]}  Kxf6 {[%clk 0:00:06]} 55. Nxf4 {[%clk 0:00:06]}  Kg5 {[%clk 0:00:06]} 56. Ne2 {[%clk 0:00:06]}  Ne3+ {[%clk 0:00:06]} 57. Kg1 {[%clk 0:00:05]}  Nc4 {[%clk 0:00:06]} 58. Nxg3 {[%clk 0:00:05]}  Kf4 {[%clk 0:00:06]} 59. Ne2+ {[%clk 0:00:06]}  Ke3 {[%clk 0:00:07]} 60. Ned4 {[%clk 0:00:06]}  Kd3 {[%clk 0:00:07]} 61. Nf5 {[%clk 0:00:06]}  e3 {[%clk 0:00:07]} 62. Nxe3 {[%clk 0:00:06]}  Kxe3 {[%clk 0:00:07]} 63. g4 {[%clk 0:00:06]}  Kf4 {[%clk 0:00:07]} 64. Kf2 {[%clk 0:00:06]}  Na3 {[%clk 0:00:06]} 65. b6 {[%clk 0:00:06]}  Nc4 {[%clk 0:00:06]} 66. Nd8 {[%clk 0:00:06]}  Nxb6 {[%clk 0:00:06]} 67. Nxb7 {[%clk 0:00:06]}  Nc4 {[%clk 0:00:07]} 68. Ke2 {[%clk 0:00:05]}  Ke4 {[%clk 0:00:07]} 69. g5 {[%clk 0:00:05]}  Ke5 {[%clk 0:00:07]} 70. Kd3 {[%clk 0:00:04]}  Nb2+ {[%clk 0:00:07]} 71. Ke3 {[%clk 0:00:04]}  Nc4+ {[%clk 0:00:07]} 72. Kf3 {[%clk 0:00:05]}  Nb6 {[%clk 0:00:06]} 73. Kg4 {[%clk 0:00:05]}  Nc4 {[%clk 0:00:06]} 74. Kh5 {[%clk 0:00:05]}  Ne3 {[%clk 0:00:06]} 75. Kh6 {[%clk 0:00:05]}  Ng4+ {[%clk 0:00:06]} 76. Bxg4 {[%clk 0:00:05]}  Kxd5 {[%clk 0:00:06]} 77. g6 {[%clk 0:00:05]}  Kc6 {[%clk 0:00:07]} 78. g7 {[%clk 0:00:06]}  Kxb7 {[%clk 0:00:08]} 79. g8=Q {[%clk 0:00:06]} 1-0


[Site "https://www.chess.com"]

[Event "Titled Tuesday Blitz December 20 Early 2022"]
[White "Zhigalko_Sergei"]
[Black "Artem_0degov"]
[WhiteElo "2876"]
[BlackElo "2661"]
[Result "1-0"]
[Round "05"]
[TimeControl "180+2"]
[Date "2022.12.20"]
[WhiteClock "0:00:21"]
[BlackClock "0:00:02"]

1. e4 {[%clk 0:03:00]}  e6 {[%clk 0:02:54]} 2. d4 {[%clk 0:03:00]}  d5 {[%clk 0:02:54]} 3. e5 {[%clk 0:03:00]}  c5 {[%clk 0:02:54]} 4. c3 {[%clk 0:03:01]}  Qb6 {[%clk 0:02:54]} 5. Nf3 {[%clk 0:03:01]}  Nc6 {[%clk 0:02:54]} 6. Bd3 {[%clk 0:03:02]}  cxd4 {[%clk 0:02:54]} 7. O-O {[%clk 0:03:02]}  Bd7 {[%clk 0:02:55]} 8. Re1 {[%clk 0:03:02]}  Rc8 {[%clk 0:02:54]} 9. h4 {[%clk 0:03:02]}  Nge7 {[%clk 0:02:09]} 10. h5 {[%clk 0:03:02]}  Nf5 {[%clk 0:02:09]} 11. Bxf5 {[%clk 0:02:47]}  exf5 {[%clk 0:02:10]} 12. cxd4 {[%clk 0:02:45]}  Be6 {[%clk 0:02:05]} 13. Nc3 {[%clk 0:02:44]}  Bb4 {[%clk 0:01:59]} 14. h6 {[%clk 0:02:39]}  g6 {[%clk 0:01:58]} 15. a3 {[%clk 0:02:25]}  Be7 {[%clk 0:01:53]} 16. Na4 {[%clk 0:02:17]}  Qb5 {[%clk 0:01:45]} 17. Bg5 {[%clk 0:02:16]}  Bxg5 {[%clk 0:01:05]} 18. Nxg5 {[%clk 0:02:16]}  b6 {[%clk 0:00:58]} 19. Nc3 {[%clk 0:01:32]}  Qc4 {[%clk 0:00:42]} 20. Ne2 {[%clk 0:01:22]}  Nd8 {[%clk 0:00:05]} 21. Rc1 {[%clk 0:01:13]}  Qa6 {[%clk 0:00:05]} 22. Nf4 {[%clk 0:01:07]}  Qb7 {[%clk 0:00:04]} 23. Rxc8 {[%clk 0:00:49]}  Qxc8 {[%clk 0:00:05]} 24. Qb3 {[%clk 0:00:50]}  Qd7 {[%clk 0:00:04]} 25. Rc1 {[%clk 0:00:37]}  O-O {[%clk 0:00:04]} 26. Qc3 {[%clk 0:00:37]}  Qe7 {[%clk 0:00:03]} 27. Nf3 {[%clk 0:00:34]}  Nb7 {[%clk 0:00:03]} 28. Qc7 {[%clk 0:00:34]}  Qxc7 {[%clk 0:00:02]} 29. Rxc7 {[%clk 0:00:35]}  Na5 {[%clk 0:00:02]} 30. Nxe6 {[%clk 0:00:32]}  fxe6 {[%clk 0:00:02]} 31. Rg7+ {[%clk 0:00:33]}  Kh8 {[%clk 0:00:02]} 32. Ng5 {[%clk 0:00:34]}  Nc4 {[%clk 0:00:02]} 33. Rxh7+ {[%clk 0:00:34]}  Kg8 {[%clk 0:00:02]} 34. Rg7+ {[%clk 0:00:35]}  Kh8 {[%clk 0:00:03]} 35. Rh7+ {[%clk 0:00:27]}  Kg8 {[%clk 0:00:02]} 36. Rxa7 {[%clk 0:00:28]}  Nxb2 {[%clk 0:00:02]} 37. Nxe6 {[%clk 0:00:21]}  Rc8 {[%clk 0:00:02]} 38. Rg7+ {[%clk 0:00:20]}  Kh8 {[%clk 0:00:02]} 39. Ng5 {[%clk 0:00:21]} 1-0


[Site "https://www.chess.com"]

[Event "Titled Tuesday Blitz December 20 Early 2022"]
[White "Zozik, S. Mohammed"]
[Black "kidagent"]
[WhiteFideId "4803280"]
[WhiteElo "2116"]
[BlackElo "2292"]
[Result "0-1"]
[Round "05"]
[TimeControl "180+2"]
[Date "2022.12.20"]
[WhiteClock "0:01:41"]
[BlackClock "0:01:22"]

1. d4 {[%clk 0:03:00]}  d5 {[%clk 0:02:35]} 2. Nf3 {[%clk 0:03:00]}  Nf6 {[%clk 0:02:35]} 3. g3 {[%clk 0:03:00]}  g6 {[%clk 0:02:34]} 4. Bg2 {[%clk 0:03:00]}  Bg7 {[%clk 0:02:34]} 5. O-O {[%clk 0:03:01]}  O-O {[%clk 0:02:35]} 6. c4 {[%clk 0:03:01]}  c6 {[%clk 0:02:36]} 7. cxd5 {[%clk 0:03:01]}  cxd5 {[%clk 0:02:36]} 8. Ne5 {[%clk 0:03:01]}  Nbd7 {[%clk 0:02:33]} 9. Nc3 {[%clk 0:02:58]}  e6 {[%clk 0:02:30]} 10. Qb3 {[%clk 0:02:46]}  Qb6 {[%clk 0:02:28]} 11. Qxb6 {[%clk 0:02:40]}  Nxb6 {[%clk 0:02:25]} 12. b3 {[%clk 0:02:40]}  Nfd7 {[%clk 0:02:21]} 13. f4 {[%clk 0:02:38]}  f6 {[%clk 0:02:13]} 14. Nd3 {[%clk 0:02:30]}  a6 {[%clk 0:02:07]} 15. Ba3 {[%clk 0:02:24]}  Re8 {[%clk 0:02:06]} 16. e4 {[%clk 0:02:22]}  dxe4 {[%clk 0:02:02]} 17. Nxe4 {[%clk 0:02:22]}  f5 {[%clk 0:01:59]} 18. Nd6 {[%clk 0:02:13]}  Bxd4+ {[%clk 0:01:58]} 19. Kh1 {[%clk 0:02:12]}  Rd8 {[%clk 0:01:54]} 20. Rad1 {[%clk 0:02:10]}  Nd5 {[%clk 0:01:48]} 21. Rfe1 {[%clk 0:01:57]}  Ne3 {[%clk 0:01:42]} 22. Bxb7 {[%clk 0:01:56]}  Bxb7+ {[%clk 0:01:37]} 23. Nxb7 {[%clk 0:01:57]}  Rdb8 {[%clk 0:01:32]} 24. Ndc5 {[%clk 0:01:48]}  Nxd1 {[%clk 0:01:26]} 25. Nxd7 {[%clk 0:01:45]}  Rxb7 {[%clk 0:01:23]} 26. Rxd1 {[%clk 0:01:41]}  Rxd7 {[%clk 0:01:22]} 0-1


[Site "https://www.chess.com"]